bitfinex-derivatives/quotes_BTCF0:USTF0_20241009
["timestamp","ask_amount","ask_price","bid_price","bid_amount"]
[1728445185782,0.02834356,62436.0,62433.0,0.080121]
[1728445186083,0.080116,62437.0,62433.0,0.080121]
[1728445186583,0.06080748,62438.0,62437.0,0.080116]
[1728445186783,0.0315,62438.0,62437.0,0.080116]
[1728445187274,0.0335,62439.0,62438.0,0.080115]
[1728445187474,0.04918061,62439.0,62438.0,0.080115]
[1728445188183,0.25748957,62439.0,62438.0,0.080115]
[1728445188581,0.10664776,62439.0,62438.0,0.080115]
[1728445188881,0.10664776,62439.0,62438.0,0.081115]
[1728445189178,0.25748957,62439.0,62438.0,0.444915]
[1728445189381,0.10664776,62439.0,62438.0,0.444915]
[1728445189784,0.04918061,62439.0,62438.0,0.444915]
[1728445189984,0.00240306,62443.0,62438.0,0.39394584]
[1728445190184,0.00240306,62443.0,62442.0,0.20011]
[1728445191180,0.05987021,62443.0,62442.0,0.20011]
[1728445191380,0.00240306,62443.0,62442.0,0.20011]
[1728445192184,0.00240306,62443.0,62442.0,0.20211]
[1728445192384,0.0037,62448.0,62445.0,0.080106]
[1728445192581,0.05746715,62449.0,62447.0,0.12]
[1728445193487,0.05746715,62448.0,62447.0,0.200103]
[1728445194278,0.3608,62454.0,62447.0,0.200103]
[1728445194479,0.3608,62454.0,62451.0,0.12]
[1728445194888,0.440895,62454.0,62451.0,0.12]
[1728445195790,0.440895,62454.0,62453.0,0.12]
[1728445199600,0.080095,62454.0,62453.0,0.12]
[1728445199980,0.200095,62454.0,62451.0,0.12]
[1728445200590,0.080096,62453.0,62451.0,0.12]
[1728445202493,0.10662395,62452.0,62451.0,0.12]
[1728445206501,0.28221157,62452.0,62451.0,0.12]
[1728445207090,0.28221157,62452.0,62451.0,0.128]
[1728445207295,0.28221157,62452.0,62451.0,0.133]
[1728445208610,0.10662395,62452.0,62451.0,0.133]
[1728445209307,0.080096,62453.0,62451.0,0.133]
[1728445210606,0.080096,62453.0,62451.0,0.131]
[1728445217397,0.10662437,62452.0,62451.0,0.131]
[1728445217798,0.10662437,62452.0,62451.0,0.231]
[1728445218607,0.10662437,62452.0,62451.0,0.224]
[1728445218807,0.10662437,62452.0,62451.0,0.232]
[1728445219300,0.10662437,62452.0,62451.0,0.233]
[1728445221606,0.080097,62452.0,62451.0,0.233]
[1728445221808,0.12926682,62452.0,62451.0,0.233]
[1728445222013,0.25629157,62452.0,62451.0,0.233]
[1728445222216,0.18672137,62452.0,62451.0,0.233]
[1728445224414,0.080097,62452.0,62451.0,0.233]
[1728445239428,0.18672367,62452.0,62451.0,0.233]
[1728445242232,0.18672367,62452.0,62451.0,0.2011]
[1728445243034,0.18672367,62452.0,62451.0,0.1672]
[1728445243231,0.18672375,62452.0,62451.0,0.1672]
[1728445244026,0.18672375,62452.0,62451.0,0.0472]
[1728445244233,0.18672375,62452.0,62451.0,0.1672]
[1728445247445,0.080097,62452.0,62451.0,0.23110925]
[1728445248034,0.080097,62452.0,62451.0,0.1672]
[1728445248928,0.080097,62452.0,62451.0,0.23107417]
[1728445249134,0.3608,62455.0,62451.0,0.1672]
[1728445249335,0.3608,62455.0,62454.0,0.12]
[1728445249732,0.080095,62454.0,62452.0,0.06387305]
[1728445250042,0.080095,62454.0,62453.0,0.12]
[1728445250739,0.080096,62453.0,62451.0,0.19387305]
[1728445250933,0.080096,62453.0,62451.0,0.19087305]
[1728445251140,0.080096,62453.0,62451.0,0.18587305]
[1728445251637,0.080096,62453.0,62451.0,0.18387305]
[1728445251938,0.080096,62453.0,62451.0,0.19087305]
[1728445252135,0.080096,62453.0,62452.0,0.06387305]
[1728445254541,0.080096,62453.0,62452.0,0.05489838]
[1728445255445,0.080096,62453.0,62452.0,0.05889838]
[1728445256551,0.080096,62453.0,62452.0,0.011]
[1728445259545,0.300096,62453.0,62452.0,0.011]
[1728445259843,0.331696,62453.0,62452.0,0.011]
[1728445261037,0.331696,62453.0,62447.0,0.0878772]
[1728445261038,1.772856,62453.0,62447.0,0.0112]
[1728445261240,0.080105,62446.0,62445.0,0.0037]
[1728445261445,0.08011,62442.0,62438.0,0.05159838]
[1728445261647,0.20011,62442.0,62441.0,0.03071139]
[1728445261844,0.20011,62442.0,62441.0,0.00240192]
[1728445262442,0.66755582,62442.0,62441.0,0.03139532]
[1728445262645,0.66755582,62442.0,62441.0,0.00240192]
[1728445263457,0.67055582,62442.0,62441.0,0.00240192]
[1728445264043,0.55055582,62442.0,62441.0,0.12240192]
[1728445264549,0.47044582,62442.0,62441.0,0.12240192]
[1728445265641,0.47044582,62442.0,62441.0,0.00240192]
[1728445265843,0.55055582,62442.0,62441.0,0.00240192]
[1728445266344,0.55055446,62442.0,62441.0,0.00240192]
[1728445267050,0.18975446,62442.0,62441.0,0.00240192]
[1728445268448,0.10964446,62442.0,62441.0,0.00240192]
[1728445268644,0.05217835,62442.0,62441.0,0.00240192]
[1728445269449,0.003,62442.0,62441.0,0.00240192]
[1728445269659,0.08311,62442.0,62441.0,0.00240192]
[1728445270356,0.08311,62442.0,62438.0,0.04781818]
[1728445270548,0.440914,62439.0,62438.0,0.04781818]
[1728445271558,0.3608,62439.0,62435.0,0.07671346]
[1728445271747,0.200118,62436.0,62435.0,0.02889528]
[1728445271949,0.12,62436.0,62433.0,0.06387305]
[1728445272159,0.08012,62435.0,62433.0,0.06387305]
[1728445272458,0.08012,62434.0,62433.0,0.02938997]
[1728445272650,0.08012,62434.0,62433.0,0.06387305]
[1728445272850,0.04003143,62434.0,62433.0,0.06387305]
[1728445273245,0.04003143,62434.0,62433.0,0.09619373]
[1728445274252,0.04003143,62434.0,62433.0,0.10119373]
[1728445274454,0.04003143,62434.0,62433.0,0.03732068]
[1728445275750,0.3608,62439.0,62433.0,0.11744168]
[1728445275949,0.440914,62439.0,62438.0,0.12]
[1728445277963,0.440914,62439.0,62436.0,0.12]
[1728445279463,0.560914,62439.0,62436.0,0.12]
[1728445279859,0.560914,62439.0,62436.0,0.122]
[1728445280254,0.4808,62439.0,62436.0,0.122]
[1728445280461,0.080115,62438.0,62436.0,0.122]
[1728445281956,0.080116,62437.0,62436.0,0.122]
[1728445282163,0.080116,62437.0,62436.0,0.002]
[1728445284673,0.080116,62437.0,62436.0,0.08188716]
[1728445284868,0.080116,62437.0,62436.0,0.2039926]
[1728445286256,0.080116,62437.0,62436.0,0.12410544]
[1728445286461,0.080116,62437.0,62436.0,0.12410514]
[1728445289267,0.080116,62437.0,62436.0,0.21991239]
[1728445292074,0.3608,62440.0,62436.0,0.32422314]
[1728445292274,0.4708,62440.0,62437.0,0.21785805]
[1728445292464,0.4708,62440.0,62438.0,0.12210514]
[1728445292667,0.4708,62440.0,62436.0,0.202118]
[1728445293273,0.4708,62440.0,62436.0,0.200118]
[1728445293475,0.4708,62440.0,62437.0,0.001]
[1728445294080,0.4708,62440.0,62436.0,0.202118]
[1728445294578,0.4708,62440.0,62436.0,0.200118]
[1728445294768,0.4708,62440.0,62437.0,0.001]
[1728445296181,0.4708,62440.0,62436.0,0.202118]
[1728445296870,0.4708,62440.0,62437.0,0.001]
[1728445297070,0.4708,62440.0,62438.0,0.080114]
[1728445299164,0.4708,62440.0,62439.0,0.080114]
[1728445299672,0.11,62440.0,62439.0,0.29796877]
[1728445300073,0.11,62440.0,62439.0,0.20221586]
[1728445300869,0.111,62440.0,62439.0,0.20221586]
[1728445301279,0.4718,62440.0,62439.0,0.20221586]
[1728445304081,0.111,62440.0,62439.0,0.20221586]
[1728445304373,0.111,62440.0,62439.0,0.29796877]
[1728445304566,0.111,62440.0,62439.0,0.20221586]
[1728445306272,0.111,62440.0,62439.0,0.29796877]
[1728445306472,0.111,62440.0,62439.0,0.29799948]
[1728445307082,0.111,62440.0,62439.0,0.20221586]
[1728445307680,0.16017945,62440.0,62439.0,0.080114]
[1728445307875,0.28696184,62440.0,62439.0,0.080114]
[1728445308070,0.33614129,62440.0,62439.0,0.080114]
[1728445308479,0.39360738,62440.0,62439.0,0.080114]
[1728445308971,0.33614129,62440.0,62439.0,0.080114]
[1728445309367,0.39360735,62440.0,62439.0,0.080114]
[1728445311874,0.21764551,62440.0,62439.0,0.080114]
[1728445312183,0.21764736,62440.0,62439.0,0.080114]
[1728445314677,0.21764736,62440.0,62439.0,0.20221627]
[1728445314678,0.111,62440.0,62439.0,0.20221627]
[1728445317479,0.111,62440.0,62439.0,0.29800379]
[1728445317875,0.0709139,62440.0,62439.0,0.29800379]
[1728445318682,0.5118259,62440.0,62439.0,0.12210227]
[1728445319181,0.5118259,62440.0,62439.0,0.20193618]
[1728445320976,0.5118259,62440.0,62439.0,0.20194311]
[1728445321287,0.5118259,62440.0,62439.0,0.07983391]
[1728445322286,0.5118259,62440.0,62438.0,0.07983391]
[1728445322489,0.200114,62439.0,62438.0,0.07983391]
[1728445322686,0.200114,62439.0,62438.0,0.06384809]
[1728445324590,0.310114,62439.0,62438.0,0.06384809]
[1728445324787,0.080116,62437.0,62436.0,0.06384809]
[1728445324990,0.320116,62437.0,62436.0,0.11174015]
[1728445325192,0.320116,62437.0,62436.0,0.06384809]
[1728445325596,0.320116,62437.0,62435.0,0.04789206]
[1728445326093,0.080118,62436.0,62435.0,0.04789206]
[1728445326289,0.080118,62436.0,62432.0,0.06384809]
[1728445326290,0.180118,62436.0,62434.0,0.04789206]
[1728445326494,0.180118,62436.0,62435.0,0.04789206]
[1728445326991,0.180118,62436.0,62435.0,0.05089206]
[1728445327387,0.180118,62436.0,62435.0,0.04789206]
[1728445327590,0.300118,62436.0,62435.0,0.04789206]
[1728445327992,0.300118,62436.0,62435.0,0.04889206]
[1728445329095,0.300118,62436.0,62435.0,0.05189206]
[1728445330801,0.660918,62436.0,62435.0,0.05189206]
[1728445331685,0.660918,62436.0,62435.0,0.004]
[1728445331686,0.71010422,62436.0,62435.0,0.004]
[1728445332496,0.34930422,62436.0,62435.0,0.004]
[1728445332794,0.71010422,62436.0,62435.0,0.004]
[1728445335698,0.660918,62436.0,62435.0,0.004]
[1728445336405,0.540918,62436.0,62435.0,0.124]
[1728445336601,0.4608,62436.0,62435.0,0.124]
[1728445336797,0.4608,62436.0,62435.0,0.25201106]
[1728445337307,0.4608,62436.0,62435.0,0.204119]
[1728445337602,0.4608,62436.0,62435.0,0.084119]
[1728445339700,0.3608,62441.0,62435.0,0.20383391]
[1728445339902,0.3608,62441.0,62440.0,0.200112]
[1728445340389,0.3608,62441.0,62440.0,0.26386855]
[1728445341496,0.0149,62445.0,62444.0,0.080107]
[1728445341695,0.01360265,62449.0,62448.0,0.080102]
[1728445341897,0.00240265,62449.0,62448.0,0.200102]
[1728445342206,0.00240265,62449.0,62448.0,0.26379403]
[1728445343303,0.00240265,62449.0,62448.0,0.200102]
[1728445343894,0.00640265,62449.0,62448.0,0.202102]
[1728445345923,0.004,62449.0,62448.0,0.202102]
[1728445346209,0.0112,62453.0,62452.0,0.080097]
[1728445346411,0.12,62460.0,62454.0,0.080094]
[1728445346412,0.0112,62457.0,62454.0,0.080094]
[1728445346707,0.1312,62460.0,62454.0,0.080094]
[1728445347107,0.1312,62460.0,62456.0,0.12]
[1728445347307,0.311287,62460.0,62456.0,0.12]
[1728445348217,0.12,62457.0,62454.0,0.080094]
[1728445349514,0.212287,62460.0,62455.0,0.12]
[1728445349814,0.211287,62460.0,62455.0,0.12]
[1728445350111,0.211287,62460.0,62456.0,0.0318]
[1728445351814,0.14584575,62459.0,62456.0,0.0318]
[1728445352004,0.14584575,62458.0,62456.0,0.0318]
[1728445352307,0.26584575,62457.0,62456.0,0.0318]
[1728445352810,0.26584574,62457.0,62456.0,0.0318]
[1728445353209,0.26584574,62457.0,62456.0,0.0328]
[1728445353604,0.26584574,62457.0,62456.0,0.0318]
[1728445353806,0.26584574,62457.0,62456.0,0.0338]
[1728445356212,0.26584574,62457.0,62456.0,0.06240477]
[1728445357213,0.26584574,62457.0,62456.0,0.18240477]
[1728445358010,0.14584574,62457.0,62456.0,0.18240477]
[1728445358514,0.08839386,62457.0,62456.0,0.18240477]
[1728445359904,0.12,62459.0,62456.0,0.26249677]
[1728445360104,0.22,62459.0,62456.0,0.26249677]
[1728445360507,0.0112,62460.0,62458.0,0.12]
[1728445360710,0.3608,62462.0,62459.0,0.080088]
[1728445361118,0.12,62460.0,62459.0,0.080088]
[1728445362821,0.3608,62462.0,62459.0,0.12]
[1728445363115,0.3608,62462.0,62460.0,0.080085]
[1728445363620,0.12,62461.0,62460.0,0.080085]
[1728445364121,0.12,62461.0,62456.0,0.06040477]
[1728445364315,0.12,62458.0,62456.0,0.06040477]
[1728445364511,0.12,62461.0,62457.0,0.12]
[1728445366212,0.121,62461.0,62457.0,0.12]
[1728445366615,0.12,62461.0,62457.0,0.12]
[1728445366810,0.12,62459.0,62456.0,0.14049677]
[1728445367012,0.14583943,62458.0,62456.0,0.14049677]
[1728445369314,0.14583943,62457.0,62456.0,0.14149677]
[1728445370318,0.14583943,62457.0,62456.0,0.14049677]
[1728445370520,0.03922463,62457.0,62456.0,0.14249677]
[1728445373020,0.03922463,62457.0,62456.0,0.11069677]
[1728445375120,0.12,62459.0,62456.0,0.11069677]
[1728445375321,0.4808,62462.0,62456.0,0.03060477]
[1728445375521,0.4808,62462.0,62458.0,0.080089]
[1728445375728,0.560885,62462.0,62458.0,0.080089]
[1728445376228,0.12,62459.0,62458.0,0.080089]
[1728445378326,0.12,62459.0,62456.0,0.02860477]
[1728445378327,0.22,62459.0,62456.0,0.02860477]
[1728445378516,0.300088,62459.0,62453.0,0.080096]
[1728445378722,0.080088,62459.0,62456.0,0.200091]
[1728445381523,0.372,62461.0,62456.0,0.12]
[1728445381724,0.372,62461.0,62459.0,0.080087]
[1728445381923,0.372,62461.0,62456.0,0.12]
[1728445381924,0.3608,62461.0,62454.0,0.080094]
[1728445382127,0.1458403,62460.0,62455.0,0.080093]
[1728445382336,0.1458403,62459.0,62455.0,0.080093]
[1728445382524,0.1458403,62458.0,62455.0,0.080093]
[1728445382724,0.1458403,62457.0,62455.0,0.080093]
[1728445382919,0.1458403,62456.0,62455.0,0.080093]
[1728445383128,0.03922486,62456.0,62455.0,0.080093]
[1728445383833,0.08838929,62456.0,62455.0,0.080093]
[1728445384022,0.14583903,62456.0,62455.0,0.080093]
[1728445384927,0.08838929,62456.0,62455.0,0.080093]
[1728445385134,0.0392243,62456.0,62455.0,0.083093]
[1728445385332,0.08838929,62456.0,62455.0,0.084093]
[1728445385635,0.0392243,62456.0,62455.0,0.084093]
[1728445386028,0.08838929,62456.0,62455.0,0.084093]
[1728445386224,0.14583903,62456.0,62455.0,0.084093]
[1728445386722,0.0966745,62456.0,62455.0,0.084093]
[1728445386919,0.14584007,62456.0,62455.0,0.084093]
[1728445387125,0.08839033,62456.0,62455.0,0.084093]
[1728445390237,0.080086,62461.0,62456.0,0.080091]
[1728445390534,0.080086,62461.0,62457.0,0.08009]
[1728445391842,0.081086,62461.0,62458.0,0.080089]
[1728445392026,0.081086,62461.0,62455.0,0.001]
[1728445392027,0.001,62461.0,62460.0,0.080087]
[1728445397338,0.14683433,62461.0,62460.0,0.080087]
[1728445397538,0.14683433,62461.0,62460.0,0.1087229]
[1728445400545,0.08938695,62461.0,62460.0,0.1087229]
[1728445400727,0.04022326,62461.0,62460.0,0.1087229]
[1728445400928,0.08938695,62461.0,62460.0,0.1087229]
[1728445404545,0.08938695,62461.0,62460.0,0.2287229]
[1728445405142,0.001,62461.0,62460.0,0.2287229]
[1728445412957,0.0112,62466.0,62465.0,0.08008]
[1728445413160,0.0112,62471.0,62470.0,0.080074]
[1728445413490,0.0112,62474.0,62473.0,0.08007]
[1728445413755,0.0112,62480.0,62479.0,0.080062]
[1728445413956,0.0321,62481.0,62479.0,0.200062]
[1728445414257,0.0321,62481.0,62480.0,0.080061]
[1728445415465,0.37344,62485.0,62483.0,0.080056]
[1728445415752,0.3608,62485.0,62483.0,0.200056]
[1728445416756,0.3608,62485.0,62483.0,0.22839734]
[1728445417056,0.3608,62485.0,62484.0,0.080056]
[1728445418358,0.3608,62485.0,62484.0,0.081056]
[1728445419953,0.09125,62489.0,62484.0,0.081056]
[1728445420152,0.09125,62489.0,62486.0,0.10909747]
[1728445420153,0.08835063,62488.0,62486.0,0.10909747]
[1728445420356,0.08835063,62488.0,62484.0,0.081056]
[1728445420357,0.08835065,62487.0,62485.0,0.12]
[1728445420656,0.14577444,62486.0,62485.0,0.12]
[1728445420959,0.08835065,62486.0,62485.0,0.12]
[1728445423755,0.080056,62484.0,62483.0,0.02834134]
[1728445423950,0.16841057,62484.0,62481.0,0.08006]
[1728445424151,0.21137836,62483.0,62481.0,0.08006]
[1728445424362,0.14577836,62482.0,62481.0,0.08006]
[1728445425462,0.14577836,62482.0,62481.0,0.08406]
[1728445425967,0.14577836,62482.0,62481.0,0.08606]
[1728445427153,0.14577919,62482.0,62481.0,0.08606]
[1728445427463,0.0656,62483.0,62481.0,0.08606]
[1728445428554,0.0656,62483.0,62481.0,0.08406]
[1728445428755,0.0656,62483.0,62482.0,0.12]
[1728445428952,0.0326,62483.0,62482.0,0.12]
[1728445430756,0.0326,62483.0,62482.0,0.123]
[1728445430954,0.0326,62483.0,62482.0,0.124]
[1728445432255,0.0326,62483.0,62482.0,0.204059]
[1728445433167,0.3608,62486.0,62482.0,0.124]
[1728445433368,0.3608,62486.0,62485.0,0.12]
[1728445435659,0.3608,62486.0,62485.0,0.200055]
[1728445439663,0.3608,62486.0,62485.0,0.080055]
[1728445439870,0.3608,62486.0,62485.0,0.200055]
[1728445442365,0.50657254,62486.0,62485.0,0.200055]
[1728445442572,0.7148815,62486.0,62485.0,0.200055]
[1728445443068,0.50657254,62486.0,62485.0,0.200055]
[1728445443875,0.14577254,62486.0,62485.0,0.200055]
[1728445444072,0.0883495,62486.0,62485.0,0.200055]
[1728445445665,0.0883466,62486.0,62485.0,0.12]
[1728445445977,0.03920535,62486.0,62485.0,0.200055]
[1728445446174,0.09662839,62486.0,62485.0,0.200055]
[1728445446468,0.0883466,62486.0,62485.0,0.202055]
[1728445446964,0.14576964,62486.0,62485.0,0.202055]
[1728445447164,0.0883466,62486.0,62485.0,0.202055]
[1728445447361,0.03920535,62486.0,62485.0,0.202055]
[1728445448375,0.0883466,62486.0,62485.0,0.202055]
[1728445448565,0.14576964,62486.0,62485.0,0.202055]
[1728445448764,0.0883466,62486.0,62485.0,0.202055]
[1728445448967,0.03920535,62486.0,62485.0,0.202055]
[1728445449569,0.0883466,62486.0,62485.0,0.202055]
[1728445449771,0.14576964,62486.0,62485.0,0.202055]
[1728445449967,0.0883466,62486.0,62485.0,0.202055]
[1728445450179,0.21521391,62486.0,62485.0,0.202055]
[1728445450475,0.0112,62491.0,62485.0,0.122]
[1728445450678,0.0112,62491.0,62490.0,0.12]
[1728445450988,0.44240601,62492.0,62490.0,0.12]
[1728445451276,0.080046,62492.0,62490.0,0.12]
[1728445451580,0.0436,62496.0,62492.0,0.080046]
[1728445451876,0.0436,62496.0,62495.0,0.12]
[1728445451877,0.112441,62496.0,62495.0,0.12]
[1728445453069,0.07160227,62496.0,62495.0,0.12]
[1728445453469,0.07160227,62496.0,62495.0,0.201042]
[1728445454077,0.07160227,62496.0,62495.0,0.200042]
[1728445454282,0.01264,62499.0,62495.0,0.12]
[1728445454476,0.03919993,62498.0,62497.0,0.080038]
[1728445454775,0.01360102,62502.0,62497.0,0.080038]
[1728445454971,0.03919917,62501.0,62500.0,0.12]
[1728445455777,0.03919904,62501.0,62500.0,0.12]
[1728445457269,0.09661203,62501.0,62500.0,0.002]
[1728445457575,0.14574629,62501.0,62500.0,0.002]
[1728445462775,0.34578029,62501.0,62500.0,0.002]
[1728445463369,0.080038,62498.0,62493.0,0.05977511]
[1728445463682,0.14574629,62497.0,62495.0,0.12]
[1728445463879,0.14574629,62496.0,62495.0,0.12]
[1728445464080,0.17754629,62496.0,62493.0,0.08829277]
[1728445464281,0.26298,62495.0,62493.0,0.08829277]
[1728445464481,0.0883333,62494.0,62493.0,0.08829277]
[1728445465572,0.23218,62494.0,62493.0,0.08829277]
[1728445466089,0.23218696,62494.0,62493.0,0.08829277]
[1728445466277,0.23218696,62494.0,62493.0,0.02851766]
[1728445466578,0.08834026,62494.0,62489.0,0.12]
[1728445466786,0.23222523,62493.0,62490.0,0.080048]
[1728445466984,0.03920254,62492.0,62491.0,0.12]
[1728445467372,0.03920254,62492.0,62478.0,0.211668]
[1728445467685,0.03920254,62492.0,62459.0,0.07966272]
[1728445467686,0.3608,62440.0,62437.0,0.01291092]
[1728445467885,0.3608,62440.0,62414.0,0.15974311]
[1728445467886,0.4808,62438.0,62427.0,0.00084]
[1728445468071,0.44844,62451.0,62427.0,0.00084]
[1728445468072,0.7216,62428.0,62427.0,0.00084]
[1728445468276,0.7216,62428.0,62423.0,0.12]
[1728445468475,0.03721339,62427.0,62421.0,0.18]
[1728445468777,0.3608,62422.0,62421.0,0.18]
[1728445470472,0.3608,62422.0,62421.0,0.002]
[1728445471578,0.3618,62422.0,62417.0,0.18]
[1728445472785,0.3618,62422.0,62415.0,0.080144]
[1728445473085,0.3608,62416.0,62415.0,0.080144]
[1728445473292,0.3608,62416.0,62415.0,0.560784]
[1728445473479,0.3608,62416.0,62415.0,1.160784]
[1728445473679,0.3608,62416.0,62415.0,1.890784]
[1728445474179,0.3608,62416.0,62415.0,1.893784]
[1728445475180,0.3608,62416.0,62415.0,1.163784]
[1728445475681,0.3608,62416.0,62415.0,1.164784]
[1728445479081,0.080133,62424.0,62415.0,1.164784]
[1728445479281,0.3608,62416.0,62415.0,0.084144]
[1728445479792,0.3608,62416.0,62415.0,0.564784]
[1728445480176,0.3608,62416.0,62415.0,0.561784]
[1728445480486,0.3608,62416.0,62415.0,0.564784]
[1728445481384,0.263833,62424.0,62415.0,0.48464]
[1728445481596,0.7216,62418.0,62417.0,0.080142]
[1728445481995,0.7216,62418.0,62417.0,0.260142]
[1728445483889,0.7216,62418.0,62417.0,0.261142]
[1728445484390,0.7216,62418.0,62417.0,0.082142]
[1728445490199,0.3608,62418.0,62417.0,1.342782]
[1728445490497,0.3109,62418.0,62417.0,1.375582]
[1728445492890,0.3109,62418.0,62417.0,1.195582]
[1728445495093,0.3608,62418.0,62417.0,1.195582]
[1728445495992,0.0037,62425.0,62417.0,1.195582]
[1728445496192,0.0074,62428.0,62427.0,0.080129]
[1728445496400,0.7216,62428.0,62427.0,0.080129]
[1728445497904,0.7226,62428.0,62427.0,0.081129]
[1728445499292,0.7226,62428.0,62427.0,0.082129]
[1728445499794,0.7226,62428.0,62427.0,0.081129]
[1728445499795,0.7216,62428.0,62427.0,0.081129]
[1728445499990,0.7216,62428.0,62427.0,0.080129]
[1728445500809,0.7216,62428.0,62427.0,0.10913389]
[1728445501501,0.7216,62428.0,62427.0,0.21520296]
[1728445502403,0.7216,62428.0,62427.0,0.10913389]
[1728445502707,0.7216,62428.0,62427.0,0.18889976]
[1728445503006,0.7216,62428.0,62427.0,0.21498203]
[1728445504610,0.7216,62428.0,62427.0,0.29471625]
[1728445505601,0.7216,62428.0,62427.0,0.18886811]
[1728445506412,0.00240294,62433.0,62432.0,0.080123]
[1728445506595,0.72400294,62433.0,62432.0,0.080123]
[1728445507901,0.72400294,62433.0,62432.0,0.081123]
[1728445509207,0.72400294,62433.0,62432.0,0.082123]
[1728445509614,0.761889,62433.0,62432.0,0.082123]
[1728445510304,0.72400294,62433.0,62432.0,0.082123]
[1728445511212,0.76188544,62433.0,62432.0,0.082123]
[1728445512004,0.72400294,62433.0,62432.0,0.082123]
[1728445512312,0.76187812,62433.0,62432.0,0.082123]
[1728445512606,0.72400294,62433.0,62432.0,0.082123]
[1728445513010,0.76183154,62433.0,62432.0,0.082123]
[1728445513209,0.76183976,62433.0,62432.0,0.082123]
[1728445513407,0.72400294,62433.0,62432.0,0.082123]
[1728445515514,0.72400294,62433.0,62432.0,0.262123]
[1728445516702,0.0037,62440.0,62439.0,0.080114]
[1728445516911,0.3608,62443.0,62442.0,0.08011]
[1728445519013,0.3645,62450.0,62449.0,0.080101]
[1728445519217,0.3608,62450.0,62449.0,0.080101]
[1728445519411,0.00240304,62453.0,62451.0,0.080098]
[1728445519412,0.18240304,62453.0,62451.0,0.080098]
[1728445520108,0.00240304,62453.0,62449.0,0.184]
[1728445520305,0.00240304,62453.0,62452.0,0.080097]
[1728445521705,0.0037,62460.0,62450.0,0.0314]
[1728445521914,0.0037,62460.0,62456.0,0.080091]
[1728445522111,0.0424,62462.0,62456.0,0.080091]
[1728445522112,0.0312,62462.0,62456.0,0.080091]
[1728445522425,0.0312,62462.0,62458.0,0.080089]
[1728445522623,0.3608,62459.0,62449.0,0.01454]
[1728445522812,0.3608,62450.0,62449.0,0.01]
[1728445523012,0.3608,62450.0,62444.0,0.02263199]
[1728445523013,0.5408,62450.0,62444.0,0.02263199]
[1728445523224,0.3608,62445.0,62441.0,0.0037]
[1728445523421,0.18,62442.0,62438.0,0.0323]
[1728445524116,0.18,62442.0,62438.0,0.05566438]
[1728445524313,0.3608,62445.0,62444.0,0.008]
[1728445525017,0.3608,62450.0,62444.0,0.008]
[1728445525224,0.3608,62450.0,62445.0,0.0302]
[1728445525918,0.3608,62450.0,62446.0,0.18]
[1728445527020,0.3608,62450.0,62446.0,0.182]
[1728445527518,0.3608,62450.0,62446.0,0.18]
[1728445527724,0.3608,62450.0,62446.0,0.181]
[1728445529723,0.3608,62450.0,62446.0,0.001]
[1728445529915,0.3608,62450.0,62448.0,0.080102]
[1728445530222,0.3618,62450.0,62448.0,0.080102]
[1728445531323,0.3638,62450.0,62448.0,0.080102]
[1728445531818,0.3618,62450.0,62448.0,0.080102]
[1728445532026,0.3648,62450.0,62448.0,0.10289156]
[1728445532217,0.3658,62450.0,62448.0,0.10289156]
[1728445532726,0.03659791,62449.0,62448.0,0.10289156]
[1728445533414,0.03659791,62449.0,62448.0,0.10989156]
[1728445533610,0.03659791,62449.0,62448.0,0.11889156]
[1728445534320,0.03759791,62449.0,62448.0,0.11889156]
[1728445534723,0.03764214,62449.0,62448.0,0.11889156]
[1728445535117,0.03764214,62449.0,62448.0,0.11189156]
[1728445535316,0.03764214,62449.0,62448.0,0.11889156]
[1728445536016,0.03764214,62449.0,62448.0,0.11489156]
[1728445536220,0.0037,62455.0,62454.0,0.080094]
[1728445536522,0.3608,62458.0,62456.0,0.080092]
[1728445536822,0.04284632,62457.0,62456.0,0.04402896]
[1728445537423,0.0037,62462.0,62458.0,0.080089]
[1728445537613,0.3608,62463.0,62458.0,0.260089]
[1728445538521,0.19000359,62459.0,62458.0,0.268089]
[1728445539832,0.19000359,62459.0,62458.0,0.273089]
[1728445540017,0.18900359,62459.0,62458.0,0.268089]
[1728445540416,0.18900359,62459.0,62458.0,0.263089]
[1728445540619,0.18900359,62459.0,62458.0,0.274089]
[1728445541129,0.18900359,62459.0,62458.0,0.266089]
[1728445541333,0.18900359,62459.0,62458.0,0.269089]
[1728445542028,0.18900359,62459.0,62458.0,0.263089]
[1728445542327,0.18900359,62459.0,62458.0,0.264089]
[1728445542530,0.3608,62463.0,62461.0,0.080085]
[1728445542825,0.0037,62469.0,62462.0,0.2122]
[1728445543026,0.083771,62473.0,62467.0,0.080077]
[1728445543227,0.080071,62473.0,62467.0,0.080077]
[1728445544132,0.002,62469.0,62467.0,0.080077]
[1728445544724,0.36920184,62470.0,62468.0,0.080076]
[1728445545532,0.00940184,62470.0,62468.0,0.080076]
[1728445546336,0.00340184,62470.0,62468.0,0.081076]
[1728445546530,0.006,62469.0,62468.0,0.081076]
[1728445547235,0.00940184,62470.0,62468.0,0.082076]
[1728445547631,0.09166027,62469.0,62468.0,0.081076]
[1728445547832,0.09176394,62469.0,62468.0,0.082076]
[1728445548034,0.13427278,62469.0,62468.0,0.082076]
[1728445548645,0.18622281,62469.0,62468.0,0.00195136]
[1728445548846,0.18622281,62469.0,62468.0,0.02539991]
[1728445549052,0.27788308,62469.0,62468.0,0.00195136]
[1728445549248,0.27788308,62469.0,62468.0,0.00095136]
[1728445549450,0.27788308,62469.0,62468.0,0.00195136]
[1728445549451,0.2704041,62469.0,62468.0,0.00195136]
[1728445549656,0.2704041,62469.0,62468.0,0.08202736]
[1728445549657,0.1267938,62469.0,62468.0,0.08202736]
[1728445550051,0.2704041,62469.0,62468.0,0.08202736]